fUST/lending_fUST_20250927
["ID","MTS","AMOUNT","RATE_DAILY","PERIOD"]
[387836781,1758911438857,-520.52739899,0.00024798,2]
[387836782,1758911438866,-520.52739899,0.00024798,2]
[387836783,1758911438875,-520.52739899,0.00024798,2]
[387836784,1758911438885,-520.52739899,0.00024798,2]
[387836785,1758911438895,-520.52739899,0.00024798,2]
[387836786,1758911438905,-520.52739899,0.00024798,2]
[387836787,1758911438914,-520.52739899,0.00024798,2]
[387836788,1758911438924,-520.52739899,0.00024798,2]
[387836789,1758911438933,-520.52739899,0.00024798,2]
[387836790,1758911438943,-520.52739899,0.00024798,2]
[387836791,1758911438952,-520.52739899,0.00024798,2]
[387836792,1758911438961,-520.52739899,0.00024798,2]
[387836793,1758911438971,-520.52739899,0.00024798,2]
[387836794,1758911438980,-520.52739899,0.00024798,2]
[387836795,1758911438990,-157.26618734,0.000248,2]
[387836796,1758911439000,-1737.76542879,0.000248,4]
[387836797,1758911439010,-2025.000297,0.0002492,2]
[387836798,1758911439019,-160.0,0.00024951,2]
[387836799,1758911439028,-12307.50355098,0.00025,2]
[387836800,1758911439037,-7094.42884097,0.00025,2]
[387836801,1758911439047,-209.34688328,0.00025,2]
[387836802,1758911439056,-10364.0,0.00025,2]
[387836803,1758911439065,-361.52992394,0.00025,2]
[387836804,1758911439074,-150.0,0.00025,2]
[387836805,1758911439083,-500.0,0.00025,2]
[387836806,1758911439092,-1172.87117165,0.00025,2]
[387836807,1758911439101,-600.0,0.00025,2]
[387836808,1758911439216,-183.565392,0.00025715,2]
[387836809,1758911439226,-1200.0,0.00025787,2]
[387836810,1758911439235,-471.04287771,0.00025788,4]
[387836811,1758911439244,-1582.16537787,0.00026,10]
[387836812,1758911439255,-500.0,0.00026544,2]
[387836813,1758911439264,-500.0,0.00026544,2]
[387836814,1758911439274,-420.0,0.00026713,2]
[387836815,1758911439283,-2217.90217716,0.00027,5]
[387836816,1758911439292,-160.0,0.00027014,2]
[387836817,1758911439302,-920.9,0.00027017,10]
[387836818,1758911439311,-832.228,0.00027027,2]
[387836819,1758911439321,-23695.5538649,0.00027028,2]
[387836820,1758911439334,-1000.0,0.00027077,2]
[387836821,1758911439344,-1000.0,0.00027092,2]
[387836822,1758911439354,-1000.0,0.00027092,2]
[387836823,1758911439363,-666.0,0.00027163,2]
[387836824,1758911439373,-4914.3670903,0.00027222,2]
[387836825,1758911439383,-471.04287771,0.00027259,7]
[387836826,1758911439392,-4012.3637887,0.00027347,2]
[387836827,1758911439401,-510.71356471,0.00027373,2]
[387836828,1758911439411,-233.71402077,0.00027595,2]
[387836829,1758911439423,-160.0,0.00027598,2]
[387836830,1758911439432,-160.0,0.00027598,2]
[387836831,1758911439441,-160.0,0.00027598,2]
[387836832,1758911439450,-160.0,0.00027598,2]
[387836833,1758911439460,-190.2173757,0.000276,2]
[387836834,1758911439469,-2025.000297,0.00027608,2]
[387836835,1758911439478,-1500.0,0.0002764,5]
[387836836,1758911439487,-848.02183,0.00027675,2]
[387836837,1758911439496,-200.0,0.00027875,2]
[387836838,1758911439507,-152.96839139,0.00027875,2]
[387836839,1758911439516,-200.0,0.00027875,2]
[387836840,1758911439526,-200.0,0.00027875,2]
[387836841,1758911439536,-200.0,0.00027875,2]
[387836842,1758911439546,-151.0,0.00027875,2]
[387836843,1758911439556,-350.0,0.00027875,2]
[387836844,1758911439565,-151.0,0.00027875,2]
[387836845,1758911439575,-350.0,0.00027875,2]
[387836846,1758911439584,-151.0,0.00027875,2]
[387836847,1758911439594,-350.0,0.00027875,2]
[387836848,1758911439603,-151.0,0.00027875,2]
[387836849,1758911439612,-350.0,0.00027875,2]
[387836850,1758911439621,-151.0,0.00027875,2]
[387836851,1758911439630,-354.93202319,0.00027875,2]
[387836852,1758911439640,-151.0,0.00027875,2]
[387836853,1758911439653,-151.0,0.00027875,2]
[387836854,1758911439663,-500.0,0.00027875,2]
[387836855,1758911439672,-151.0,0.00027875,2]
[387836856,1758911439681,-500.0,0.00027875,2]
[387836857,1758911439691,-266.85827643,0.00027875,2]
[387836858,1758911439700,-500.0,0.00027875,2]
[387836859,1758911439710,-500.0,0.00027875,2]
[387836860,1758911439719,-500.0,0.00027875,2]
[387836861,1758911439728,-500.0,0.00027875,2]
[387836862,1758911439738,-500.0,0.00027875,2]
[387836863,1758911439747,-500.0,0.00027875,2]
[387836864,1758911439758,-500.0,0.00027875,2]
[387836865,1758911439768,-500.0,0.00027875,2]
[387836866,1758911439777,-500.0,0.00027875,2]
[387836867,1758911439787,-500.0,0.00027875,2]
[387836868,1758911439798,-500.0,0.00027875,2]
[387836869,1758911439807,-209.05319987,0.00028,2]
[387836870,1758911439817,-559.1194894,0.00028045,2]
[387836871,1758911439827,-500.0,0.00028069,5]
[387836872,1758911439837,-500.0,0.00028069,5]
[387836873,1758911439847,-1000.0,0.000285,2]
[387836874,1758911439857,-1000.0,0.000285,2]
[387836875,1758911439866,-1000.0,0.000285,2]
[387836876,1758911439875,-1000.0,0.000285,2]
[387836877,1758911439885,-1000.0,0.000285,2]
[387836878,1758911439894,-1596.50371554,0.000285,7]
[387836879,1758911439903,-1000.0,0.00028617,5]
[387836880,1758911439913,-1000.0,0.00028617,5]
[387836881,1758911439922,-471.04287771,0.00028731,10]
[387836882,1758911439931,-172.680654,0.0002875,20]
[387836883,1758911439942,-860.44,0.0002879,3]
[387836884,1758911439951,-169.06105871,0.000288,7]
[387836885,1758911439961,-199.0,0.0002888,14]
[387836886,1758911439971,-587.0,0.00028949,2]
[387836887,1758911439980,-500.0,0.00028973,5]
[387836888,1758911439990,-500.0,0.00028973,5]
[387836889,1758911440000,-380.64569965,0.00028973,5]
[387836890,1758911440011,-500.0,0.00028973,5]
[387836891,1758911440020,-500.0,0.00028973,5]
[387836892,1758911440029,-35879.7545451,0.00028979,2]
[387836893,1758911440039,-19105.56866105,0.00028989,2]
[387836894,1758911440049,-879.11405125,0.00029,2]
[387836895,1758911440058,-209.0,0.00029,2]
[387836896,1758911440067,-37538.93044531,0.00029,3]
[387836897,1758911440077,-1512.1776864,0.0002911,2]
[387836898,1758911440087,-618.43175906,0.00029165,5]
[387836899,1758911440096,-1555.42664774,0.00029165,5]
[387836900,1758911440105,-500.0,0.00029293,5]
[387836901,1758911440115,-172.680654,0.00029367,20]
[387836902,1758911440125,-180.61,0.00029422,22]
[387836903,1758911440134,-183.5672233,0.0002947,20]
[387836904,1758911440143,-1007.73310041,0.00029521,5]
[387836905,1758911440153,-1000.0,0.00029521,5]
[387836906,1758911440162,-500.0,0.00029521,5]
[387836907,1758911440171,-500.0,0.00029521,5]
[387836908,1758911440180,-199.0,0.00029565,15]
[387836909,1758911440187,-1201.1361545,0.000299,5]
[387836910,1758911440193,-2077.43373393,0.0003,2]
[387836911,1758911440199,-5625.28703345,0.0003,2]
[387836912,1758911440207,-73266.63289406,0.0003,30]
[387836913,1758911440217,-165.46,0.0003,5]
[387836914,1758911440223,-523.98269687,0.0003,2]
[387836915,1758911440230,-158.80050712,0.0003,60]
[387836916,1758911440239,-1115.45,0.0003,2]
[387836917,1758911440249,-3089.4980011,0.00030017,2]
[387836918,1758911440260,-9352.1519196,0.00030017,2]
[387836919,1758911440269,-1500.0,0.00030068,5]
[387836920,1758911440279,-1115.45,0.0003014,2]
[387836921,1758911440287,-1720.88,0.0003016,3]
[387836922,1758911440297,-471.04287771,0.00030203,13]
[387836923,1758911440306,-199.0,0.0003025,16]
[387836924,1758911440316,-2025.000297,0.00030295,2]
[387836925,1758911440326,-1000.0,0.00030443,2]
[387836926,1758911440339,-1000.0,0.00030443,2]
[387836927,1758911440348,-1000.0,0.00030443,2]
[387836928,1758911440358,-1000.0,0.00030443,2]
[387836929,1758911440367,-1000.0,0.00030443,2]
[387836930,1758911440378,-500.0,0.00030573,5]
[387836931,1758911440388,-942.23063331,0.0003058,2]
[387836932,1758911440430,-10923.52634378,0.0003058,2]
[387836933,1758911440441,-736.12090922,0.0003058,2]
[387836934,1758911440453,-18444.0,0.0003058,2]
[387836935,1758911440754,-4833.87665879,0.0003058,2]
[387836936,1758911440764,-167.2,0.00030588,2]
[387836937,1758911440774,-4012.3637887,0.0003059,2]
[387836942,1758911440879,-1005.65428877,0.00030616,5]
[387836943,1758911440887,-167.21943034,0.00030862,2]
[387836944,1758911440897,-1000.0,0.00030993,2]
[387836945,1758911440907,-395.90823976,0.00031121,5]
[387836946,1758911440916,-1000.0,0.00031318,2]
[387836947,1758911440926,-823.0,0.00031373,2]
[387836948,1758911440935,-559.1194894,0.0003139,2]
[387836949,1758911440944,-1000.0,0.00031541,2]
[387836951,1758911440953,-273.08,0.00031655,3]
[387836953,1758911440962,-819.24,0.00031655,3]
[387836955,1758911440971,-500.0,0.00031673,2]
[387836956,1758911440980,-500.0,0.00031673,5]
[387836957,1758911440989,-471.04287771,0.00031675,16]
[387836958,1758911440998,-500.0,0.00031805,2]
[387836959,1758911441008,-1328.9089081,0.00032,120]
[387836960,1758911441017,-561.76838018,0.00032,120]
[387836961,1758911441028,-412.16,0.00032,120]
[387836962,1758911441037,-160.57290413,0.00032,120]
[387836963,1758911441047,-375.36954557,0.00032,120]
[387836964,1758911441057,-1459.42329417,0.00032,120]
[387836965,1758911441066,-177.25022643,0.00032,120]
[387836967,1758911441075,-1000.0,0.00032074,14]
[387836968,1758911441084,-164.26497136,0.00032074,14]
[387836969,1758911441094,-151.0,0.00032074,14]
[387836970,1758911441103,-250.0,0.00032074,10]
[387836971,1758911441113,-250.0,0.00032074,10]
[387836972,1758911441122,-377.847015,0.00032074,10]
[387836973,1758911441131,-1194.13337081,0.00032074,2]
[387836974,1758911441141,-1000.0,0.00032156,14]
[387836975,1758911441149,-512.6192814,0.00032221,2]
[387836976,1758911441159,-1000.0,0.00032221,5]
[387836977,1758911441168,-1328.9089081,0.000323,120]
[387836978,1758911441177,-561.76838018,0.000323,120]
[387836979,1758911441186,-412.16,0.000323,120]
[387836980,1758911441195,-160.57290413,0.000323,120]
[387836981,1758911441204,-375.36954557,0.000323,120]
[387836982,1758911441213,-1459.42329417,0.000323,120]
[387836983,1758911441222,-177.25022643,0.000323,120]
[387836984,1758911441232,-1328.9089081,0.000326,120]
[387836985,1758911441241,-561.76838018,0.000326,120]
[387836986,1758911441251,-412.16,0.000326,120]
[387836987,1758911441260,-160.57290413,0.000326,120]
[387836988,1758911441269,-375.36954557,0.000326,120]
[387836989,1758911441278,-1459.42329417,0.000326,120]
[387836990,1758911441287,-177.25022643,0.000326,120]
[387836991,1758911441295,-160.0,0.000326,120]
[387836992,1758911441305,-160.0,0.000326,120]
[387836993,1758911441314,-500.0,0.000327,5]
[387836994,1758911441323,-161.5,0.00032826,30]
[387836995,1758911441333,-500.0,0.00032873,5]
[387836996,1758911441343,-500.0,0.00032873,5]
[387836997,1758911441353,-151.84293406,0.00032873,5]
[387836998,1758911441362,-500.0,0.00032873,5]
[387836999,1758911441371,-500.0,0.00032873,5]
[387837000,1758911441381,-150.0,0.00032876,2]
[387837001,1758911441390,-300.0,0.00032876,2]
[387837002,1758911441399,-450.0,0.00032876,2]
[387837003,1758911441408,-158.79622481,0.00032876,2]
[387837004,1758911441418,-463.942176,0.00032877,2]
[387837005,1758911441427,-12500.0,0.00032877,10]
[387837006,1758911441437,-574.98947737,0.00032882,2]
[387837007,1758911441448,-10026.83681855,0.00032882,2]
[387837008,1758911441460,-21142.06761544,0.00032882,2]
[387837009,1758911441471,-4135.86063374,0.00032882,2]
[387837010,1758911441480,-4368.65113925,0.00032892,10]
[387837011,1758911441489,-2025.000297,0.00032983,2]
[387837012,1758911441497,-1328.9089081,0.00033,120]
[387837013,1758911441507,-561.76838018,0.00033,120]
[387837014,1758911441517,-412.16,0.00033,120]
[387837015,1758911441526,-375.36954557,0.00033,120]
[387837016,1758911441535,-1459.42329417,0.00033,120]
[387837017,1758911441544,-546.16,0.00033025,3]
[387837018,1758911441554,-494.28160937,0.00033046,7]
[387837019,1758911441565,-5.71839063,0.00033046,7]
[387837020,1758911441574,-500.0,0.00033109,7]
[387837021,1758911441583,-4085.12113401,0.00033138,2]
[387837022,1758911441592,-471.04287771,0.00033147,19]
[387837023,1758911441601,-151.0,0.00033164,14]
[387837024,1758911441610,-500.0,0.00033192,7]
[387837025,1758911441620,-165.66239393,0.000332,117]
[387837026,1758911441629,-500.0,0.0003321,7]
[387837027,1758911441638,-1000.0,0.00033248,5]
[387837028,1758911441647,-230.343218,0.00033248,7]
[387837029,1758911441656,-230.343218,0.00033248,7]
[387837030,1758911441665,-151.0,0.00033248,7]
[387837031,1758911441674,-230.343218,0.00033248,7]
[387837032,1758911441684,-230.343218,0.00033248,7]
[387837033,1758911441693,-163.139909,0.00033248,7]
[387837034,1758911441703,-151.0,0.00033248,7]
[387837035,1758911441712,-1328.9089081,0.000333,120]
[387837036,1758911441721,-561.76838018,0.000333,120]
[387837037,1758911441731,-412.16,0.000333,120]
[387837038,1758911441740,-375.36954557,0.000333,120]
[387837039,1758911441749,-1459.42329417,0.000333,120]
[387837040,1758911441759,-704.57444401,0.00033354,2]
[387837041,1758911441768,-1268.23399922,0.00033354,2]
[387837042,1758911441778,-2254.63822084,0.00033354,2]
[387837043,1758911441787,-3522.87222005,0.00033354,2]
[387837044,1758911441796,-5072.93599688,0.00033354,2]
[387837045,1758911441806,-169.32819949,0.00033354,2]
[387837046,1758911441815,-304.79075908,0.00033354,2]
[387837047,1758911441824,-541.85023836,0.00033354,2]
[387837048,1758911441834,-151.0,0.00033355,7]
[387837049,1758911441843,-151.0,0.00033355,7]
[387837050,1758911441853,-151.0,0.00033355,7]
[387837051,1758911441862,-151.91195523,0.00033355,2]
[387837052,1758911441871,-151.0,0.00033355,7]
[387837053,1758911441881,-151.0,0.00033355,7]
[387837054,1758911441890,-158.982296,0.00033355,7]
[387837055,1758911441899,-577.468372,0.00033355,7]
[387837056,1758911441909,-577.468372,0.00033355,7]
[387837057,1758911441918,-158.982296,0.00033355,7]
[387837058,1758911441928,-577.468372,0.00033355,7]
[387837059,1758911441937,-158.982296,0.00033355,7]
[387837060,1758911441947,-577.468372,0.00033355,7]
[387837061,1758911441957,-158.982296,0.00033355,7]
[387837062,1758911441967,-151.0,0.00033355,7]
[387837063,1758911441976,-151.0,0.00033355,7]
[387837064,1758911441986,-151.0,0.00033355,7]
[387837065,1758911441995,-151.0,0.00033355,7]
[387837066,1758911442004,-151.0,0.00033355,7]
[387837067,1758911442014,-151.0,0.00033355,7]
[387837068,1758911442023,-151.0,0.00033355,7]
[387837069,1758911442032,-1148.19602,0.00033355,7]
[387837070,1758911442041,-151.0,0.00033355,7]
[387837071,1758911442051,-1148.19602,0.00033355,7]
[387837072,1758911442059,-151.0,0.00033355,7]
[387837073,1758911442069,-1148.19602,0.00033355,7]
[387837074,1758911442079,-1148.19602,0.00033355,7]
[387837075,1758911442088,-279.968681,0.00033355,7]
[387837076,1758911442098,-335.842764,0.00033355,7]
[387837077,1758911442107,-335.842764,0.00033355,7]
[387837078,1758911442117,-335.842764,0.00033355,7]
[387837079,1758911442127,-335.842764,0.00033355,7]
[387837080,1758911442137,-9352.1519196,0.00033417,2]
[387837081,1758911442146,-1000.0,0.00033421,5]
[387837082,1758911442155,-1000.0,0.00033421,5]
[387837083,1758911442164,-1000.0,0.00033421,5]
[387837084,1758911442174,-630.1077189,0.00033421,5]
[387837085,1758911442183,-1000.0,0.00033534,2]
[387837086,1758911442193,-1192.91124426,0.0003359,2]
[387837087,1758911442205,-13833.84078249,0.0003359,2]
[387837100,1758911443978,-767.42,0.00027018,10]
[387837101,1758911443988,-292.58306,0.00033248,7]
[387837102,1758911443998,-3462.3,0.000333,14]
[387837103,1758911444015,-20853.00251835,0.0003359,2]
[387837104,1758911444024,-1459.42329417,0.000336,120]
[387837105,1758911444035,-152.06376748,0.00033606,2]
[387837106,1758911444045,-152.00964174,0.00033606,2]
[387837107,1758911444055,-242.76310118,0.00033606,2]
[387837108,1758911444065,-151.0,0.00033606,2]
[387837109,1758911444074,-245.39878186,0.00033606,2]
[387837110,1758911444083,-151.93549936,0.00033606,2]
[387837111,1758911444092,-151.5785623,0.00033606,2]
[387837112,1758911444101,-151.55003278,0.00033606,2]
[387837113,1758911444112,-151.0,0.00033606,2]
[387837114,1758911444121,-151.0,0.00033606,2]
[387837115,1758911444130,-500.0,0.00033606,2]
[387837116,1758911444139,-151.0,0.00033606,2]
[387837117,1758911444148,-184.18797086,0.00033606,2]
[387837118,1758911444158,-151.0,0.00033606,2]
[387837119,1758911444167,-151.0,0.00033606,2]
[387837120,1758911444176,-151.0,0.00033606,2]
[387837121,1758911444185,-151.0,0.00033606,2]
[387837122,1758911444194,-151.0,0.00033606,2]
[387837123,1758911444204,-157.96034536,0.00033606,2]
[387837124,1758911444213,-500.0,0.00033711,7]
[387837125,1758911444222,-1500.0,0.00033796,5]
[387837126,1758911444231,-4012.3637887,0.00033834,2]
[387837128,1758911444240,-151.0,0.0003388,2]
[387837130,1758911444250,-151.0,0.0003388,2]
[387837132,1758911444265,-500.0,0.0003388,2]
[387837134,1758911444274,-286.39530844,0.0003388,2]
[387837136,1758911444283,-151.0,0.0003388,2]
[387837138,1758911444292,-152.19722845,0.0003388,2]
[387837139,1758911444301,-210.1375634,0.0003388,2]
[387837140,1758911444311,-500.0,0.00033883,7]
[387837141,1758911444320,-1500.0,0.00033968,5]
[387837142,1758911444433,-1500.0,0.00033968,5]
[387837143,1758911444443,-1500.0,0.00033968,5]
[387837144,1758911444453,-1459.42329417,0.00034,120]
[387837145,1758911444462,-475.0,0.00034,2]
[387837146,1758911444472,-500.0,0.00034004,7]
[387837147,1758911444481,-502.78751459,0.000341,5]
[387837148,1758911444491,-644.66699818,0.00034122,5]
[387837149,1758911444499,-151.0,0.00034154,2]
[387837150,1758911444511,-151.0,0.00034154,2]
[387837151,1758911444520,-500.0,0.00034154,2]
[387837152,1758911444529,-151.0,0.00034255,14]
[387837153,1758911444539,-14090.50523985,0.00034276,2]
[387837154,1758911444550,-1351.63481369,0.00034276,2]
[387837155,1758911444559,-1459.42329417,0.000343,120]
[387837156,1758911444568,-500.0,0.00034338,7]
[387837157,1758911444578,-342.75030448,0.00034344,5]
[387837158,1758911444587,-150.0,0.00034373,5]
[387837159,1758911444596,-200.58811603,0.00034428,2]
[387837160,1758911444605,-500.0,0.00034428,2]
[387837161,1758911444615,-3462.3,0.000345,14]
[387837162,1758911444624,-508.2223928,0.00034516,5]
[387837163,1758911444633,-2000.0,0.00034516,5]
[387837164,1758911444642,-2000.0,0.00034516,5]
[387837165,1758911444652,-471.04287771,0.00034619,23]
[387837166,1758911444661,-500.0,0.00034673,5]
[387837167,1758911444671,-500.0,0.00034673,5]
[387837168,1758911444680,-35879.7545451,0.0003469,2]
[387837169,1758911444689,-1459.42329417,0.000347,120]
[387837170,1758911444698,-578.09600809,0.00034702,2]
[387837171,1758911444707,-559.1194894,0.00034736,2]
[387837172,1758911444717,-1000.0,0.000348,14]
[387837173,1758911444726,-161.5,0.00034823,30]
[387837174,1758911444735,-300.0,0.00034921,5]
[387837175,1758911444745,-1459.42329417,0.00035,120]
[387837176,1758911444754,-500.0,0.00035009,30]
[387837177,1758911444764,-230.343218,0.00035064,7]
[387837178,1758911444774,-230.343218,0.00035064,7]
[387837179,1758911444783,-230.343218,0.00035064,7]
[387837180,1758911444792,-230.343218,0.00035064,7]
[387837181,1758911444802,-292.58306,0.00035064,7]
[387837182,1758911444812,-2500.0,0.00035064,5]
[387837183,1758911444821,-518.19300891,0.00035064,5]
[387837184,1758911444830,-500.0,0.00035125,30]
[387837185,1758911444839,-603.79930623,0.00035221,5]
[387837186,1758911444848,-552.38133924,0.00035221,5]
[387837187,1758911444858,-151.0,0.00035345,14]
[387837188,1758911444867,-450.0,0.00035468,5]
[387837189,1758911444877,-500.0,0.0003547,30]
[387837190,1758911444886,-500.0,0.00035484,30]
[387837191,1758911444896,-2021.6774635,0.00035612,5]
[387837192,1758911444906,-999.0,0.00035616,120]
[387837193,1758911444916,-600.0,0.00036016,5]
[387837194,1758911444925,-1000.0,0.00036078,2]
[387837195,1758911444935,-471.04287771,0.00036091,26]
[387837196,1758911444945,-3462.3,0.000361,14]
[387837197,1758911444955,-4085.12113398,0.00036335,2]
[387837198,1758911444963,-151.0,0.00036436,14]
[387837199,1758911444972,-999.0,0.00036438,120]
[387837200,1758911444981,-511.8871894,0.00036564,5]
[387837201,1758911444991,-500.0,0.00036596,30]
[387837202,1758911445000,-151.0,0.00036817,30]
[387837203,1758911445011,-151.0,0.00036817,30]
[387837204,1758911445021,-151.0,0.00036817,30]
[387837205,1758911445030,-151.0,0.00036817,30]
[387837206,1758911445039,-151.0,0.00036817,30]
[387837207,1758911445049,-158.982296,0.00036817,30]
[387837208,1758911445059,-577.468372,0.00036817,30]
[387837209,1758911445069,-577.468372,0.00036817,30]
[387837210,1758911445079,-158.982296,0.00036817,30]
[387837211,1758911445089,-577.468372,0.00036817,30]
[387837212,1758911445098,-158.982296,0.00036817,30]
[387837213,1758911445108,-577.468372,0.00036817,30]
[387837214,1758911445118,-158.982296,0.00036817,30]
[387837215,1758911445128,-151.0,0.00036817,30]
[387837216,1758911445138,-151.0,0.00036817,30]
[387837217,1758911445149,-151.0,0.00036817,30]
[387837218,1758911445162,-244.22180316,0.00036817,30]
[387837219,1758911445179,-151.0,0.00036817,30]
[387837220,1758911445189,-151.0,0.00036817,30]
[387837221,1758911445200,-151.0,0.00036817,30]
[387837222,1758911445210,-1148.19602,0.00036817,30]
[387837223,1758911445220,-151.0,0.00036817,30]
[387837224,1758911445230,-151.0,0.00036817,30]
[387837225,1758911445240,-1148.19602,0.00036817,30]
[387837226,1758911445250,-1148.19602,0.00036817,30]
[387837227,1758911445263,-1148.19602,0.00036817,30]
[387837228,1758911445272,-335.842764,0.00036817,30]
[387837229,1758911445282,-335.842764,0.00036817,30]
[387837230,1758911445292,-335.842764,0.00036817,30]
[387837231,1758911445302,-335.842764,0.00036817,30]
[387837232,1758911445312,-9352.1519196,0.00036817,2]
[387837233,1758911445325,-161.5,0.0003682,30]
[387837234,1758911445340,-4012.3637887,0.00037077,2]
[387837235,1758911445350,-500.0,0.00037208,30]
[387837236,1758911445360,-12091.4853311,0.00037249,3]
[387837237,1758911445372,-23788.269214,0.00037249,3]
[387837238,1758911445383,-999.0,0.0003726,120]
[387837239,1758911445392,-500.0,0.00037325,30]
[387837240,1758911445402,-500.0,0.00037329,30]
[387837241,1758911445412,-500.0,0.00037331,30]
[387837242,1758911445422,-1000.0,0.00037526,14]
[387837243,1758911445432,-1004.63643091,0.00037526,14]
[387837244,1758911445441,-152.51409887,0.00037526,14]
[387837245,1758911445450,-471.04287771,0.00037563,29]
[387837246,1758911445461,-500.0,0.00037564,30]
[387837247,1758911445471,-500.0,0.00037665,30]
[387837248,1758911445480,-153.0,0.00037774,30]
[387837249,1758911445490,-153.0,0.00037774,30]
[387837250,1758911445499,-153.0,0.00037774,30]
[387837251,1758911445511,-153.0,0.00037774,30]
[387837252,1758911445521,-500.0,0.00037863,30]
[387837253,1758911445530,-254.84,0.000379,30]
[387837254,1758911445539,-198.2161166,0.000379,30]
[387837255,1758911445548,-105189.24089578,0.00038,7]
[387837280,1758911447688,-292.58306,0.00033248,7]
[387837281,1758911447703,-385.66079,0.00033248,7]
[387837282,1758911447717,-292.58306,0.00035064,7]
[387837283,1758911447732,-186.6730895,0.00035064,7]
[387837288,1758911456109,-5000.0,0.00024357,2]
[387837289,1758911458457,0.01,0.00023711,2]
[387837290,1758911458478,10000.01,0.00023711,2]
[387837291,1758911458500,4354.7515972,0.00023711,2]
[387837292,1758911460046,5000.0,0.00024357,2]
[387837293,1758911479859,-5000.0,0.0002455,13]
[387837294,1758911483586,0.01,0.0002455,2]
[387837295,1758911483608,4999.99,0.0002455,2]
[387837296,1758911499377,5000.0,0.00024357,2]
[387837297,1758911506379,-246.35096407,0.00024649,2]
[387837298,1758911506408,-200.0,0.00024649,2]
[387837299,1758911506437,-196.67385239,0.00024649,2]
[387837300,1758911507705,5000.0,0.00024403,13]
[387837301,1758911514977,286.58975418,0.00024649,2]
[387837302,1758911519995,-500.0,0.00024649,2]
[387837303,1758911520024,-200.0,0.00024649,2]
[387837304,1758911521658,167.6600721,0.00024649,2]
[387837305,1758911521759,569.62709602,0.00024649,2]
[387837306,1758911523674,5000.0,0.00024649,2]
[387837307,1758911536294,-2953.32917846,0.00024549,13]
[387837308,1758911550293,-2490.81362482,0.00024549,13]
[387837309,1758911554560,2917.96015178,0.00024549,2]
[387837310,1758911565924,917.099999,0.00032074,30]
[387837311,1758911569860,5000.0,0.00024357,2]
[387837312,1758911596528,-5000.0,0.00024357,2]
[387837313,1758911600365,-202.8,0.000244,2]
[387837314,1758911601412,5000.0,0.00024357,2]
[387837315,1758911606472,-1165.805,0.00024427,2]
[387837316,1758911606920,824.97384658,0.00021372,2]
[387837317,1758911607045,824.97384658,0.00022844,2]
[387837318,1758911620715,-2805.56318722,0.00024545,13]
[387837319,1758911624945,4388.88362556,0.00024545,2]
[387837320,1758911624967,611.11637444,0.00024545,2]
[387837321,1758911640138,159.302375,0.00024357,2]
[387837322,1758911648109,5000.0,0.00024357,2]
[387837323,1758911651593,-160.0,0.00024793,2]
[387837324,1758911665349,160.0,0.00024795,2]
[387837329,1758911671799,251.31552638,0.00024796,2]
[387837330,1758911700247,153.56425783,0.00024796,2]
[387837331,1758911716655,-2668.76758352,0.00024798,2]
[387837389,1758911776878,442.3173821,0.000199,2]
[387837390,1758911777142,442.31738205,0.00022844,2]
[387837391,1758911777178,442.31738205,0.00024316,2]
[387837392,1758911777527,442.31738205,0.00021372,2]
[387837408,1758911880096,155.0,0.0001812,2]
[387837409,1758911907073,-1000.0,0.00025174,2]
[387837410,1758911909802,666.0,0.00024979,2]